fUSD/lending_fUSD_20240107
["ID","MTS","AMOUNT","RATE_DAILY","PERIOD"]
[310658788,1704637883416,-500.0,0.00029281,2]
[310658789,1704637883425,-500.0,0.00029281,2]
[310658790,1704637883435,-500.0,0.00029281,2]
[310658791,1704637883444,-503.75479229,0.00029281,2]
[310658792,1704637883453,-500.0,0.00029281,2]
[310658793,1704637883463,-563.42351579,0.00029281,2]
[310658794,1704637883472,-500.0,0.00029281,2]
[310658795,1704637883482,-500.0,0.00029281,2]
[310658796,1704637883492,-203.63190927,0.00029281,2]
[310658797,1704637883501,-500.0,0.00029281,2]
[310658798,1704637883511,-500.0,0.00029281,2]
[310658799,1704637883521,-533.01156799,0.00029281,2]
[310658800,1704637883530,-500.0,0.00029281,2]
[310658801,1704637883539,-500.0,0.00029281,2]
[310658802,1704637883549,-500.0,0.00029281,2]
[310658803,1704637883559,-516.05581868,0.00029281,2]
[310658804,1704637883569,-500.0,0.00029281,2]
[310658805,1704637883578,-500.0,0.00029281,2]
[310658806,1704637883588,-500.0,0.00029281,2]
[310658807,1704637883598,-500.0,0.00029281,2]
[310658808,1704637883607,-500.0,0.00029281,2]
[310658809,1704637883618,-500.0,0.00029281,2]
[310658810,1704637883628,-513.1489206,0.00029281,2]
[310658812,1704637883638,-500.0,0.00029281,2]
[310658813,1704637883648,-500.0,0.00029281,2]
[310658814,1704637883658,-504.88146215,0.00029281,2]
[310658815,1704637883668,-500.0,0.00029281,2]
[310658816,1704637883678,-500.0,0.00029281,2]
[310658817,1704637883688,-500.0,0.00029281,2]
[310658818,1704637883698,-527.23787193,0.00029281,2]
[310658819,1704637883708,-500.0,0.00029281,2]
[310658820,1704637883718,-500.0,0.00029281,2]
[310658821,1704637883728,-500.0,0.00029281,2]
[310658822,1704637883738,-500.0,0.00029281,2]
[310658823,1704637883748,-500.0,0.00029281,2]
[310658824,1704637883758,-514.64870877,0.00029281,2]
[310658825,1704637883767,-500.0,0.00029281,2]
[310658826,1704637883777,-500.0,0.00029281,2]
[310658827,1704637883787,-620.39127327,0.00029281,2]
[310658828,1704637883797,-500.0,0.00029281,2]
[310658829,1704637883807,-500.0,0.00029281,2]
[310658830,1704637883817,-500.0,0.00029281,2]
[310658831,1704637883832,-500.0,0.00029281,2]
[310658832,1704637883842,-500.0,0.00029281,2]
[310658833,1704637883852,-500.0,0.00029281,2]
[310658835,1704637883861,-522.43346414,0.00029281,2]
[310658836,1704637883872,-513.58392021,0.00029281,2]
[310658837,1704637883881,-500.0,0.00029281,2]
[310658838,1704637883891,-500.0,0.00029281,2]
[310658839,1704637883902,-500.0,0.00029281,2]
[310658840,1704637883911,-500.0,0.00029281,2]
[310658841,1704637883921,-500.0,0.00029281,2]
[310658842,1704637883930,-525.7727493,0.00029281,2]
[310658843,1704637883941,-500.0,0.00029281,2]
[310658844,1704637883950,-500.0,0.00029281,2]
[310658846,1704637883960,-500.0,0.00029281,2]
[310658847,1704637883969,-500.0,0.00029281,2]
[310658848,1704637883979,-500.0,0.00029281,2]
[310658850,1704637883988,-500.0,0.00029281,2]
[310658851,1704637883998,-500.0,0.00029281,2]
[310658852,1704637884007,-500.0,0.00029281,2]
[310658853,1704637884017,-500.0,0.00029281,2]
[310658854,1704637884026,-500.0,0.00029281,2]
[310658855,1704637884036,-500.0,0.00029281,2]
[310658856,1704637884045,-500.0,0.00029281,2]
[310658857,1704637884055,-500.0,0.00029281,2]
[310658858,1704637884065,-500.0,0.00029281,2]
[310658860,1704637884075,-500.0,0.00029281,2]
[310658861,1704637884085,-500.0,0.00029281,2]
[310658862,1704637884095,-227.9563224,0.00029281,2]
[310658863,1704637884104,-500.0,0.00029281,2]
[310658864,1704637884113,-581.76332706,0.00029281,2]
[310658865,1704637884123,-500.0,0.00029281,2]
[310658866,1704637884132,-500.0,0.00029281,2]
[310658867,1704637884142,-500.0,0.00029281,2]
[310658868,1704637884151,-500.0,0.00029281,2]
[310658869,1704637884161,-500.0,0.00029281,2]
[310658870,1704637884170,-500.0,0.00029281,2]
[310658871,1704637884179,-500.0,0.00029281,2]
[310658872,1704637884189,-500.0,0.00029281,2]
[310658874,1704637884198,-500.0,0.00029281,2]
[310658875,1704637884207,-500.0,0.00029281,2]
[310658876,1704637884217,-500.0,0.00029281,2]
[310658877,1704637884226,-500.0,0.00029281,2]
[310658878,1704637884235,-500.0,0.00029281,2]
[310658879,1704637884245,-500.0,0.00029281,2]
[310658881,1704637884254,-314.70912629,0.00029281,2]
[310658882,1704637884263,-500.0,0.00029281,2]
[310658883,1704637884274,-500.0,0.00029281,2]
[310658884,1704637884284,-553.78257612,0.00029281,2]
[310658885,1704637884294,-500.0,0.00029281,2]
[310658886,1704637884308,-500.0,0.00029281,2]
[310658887,1704637884318,-500.0,0.00029281,2]
[310658888,1704637884329,-500.0,0.00029281,2]
[310658889,1704637884339,-375.42553887,0.00029281,2]
[310658890,1704637884349,-500.0,0.00029281,2]
[310658891,1704637884359,-500.0,0.00029281,2]
[310658892,1704637884368,-500.0,0.00029281,2]
[310658893,1704637884378,-500.0,0.00029281,2]
[310658894,1704637884388,-500.0,0.00029281,2]
[310658895,1704637884397,-500.0,0.00029281,2]
[310658896,1704637884406,-500.0,0.00029281,2]
[310658897,1704637884416,-500.0,0.00029281,2]
[310658899,1704637884426,-500.0,0.00029281,2]
[310658900,1704637884435,-500.0,0.00029281,2]
[310658901,1704637884445,-500.0,0.00029281,2]
[310658902,1704637884455,-500.0,0.00029281,2]
[310658903,1704637884464,-500.0,0.00029281,2]
[310658904,1704637884474,-500.0,0.00029281,2]
[310658905,1704637884483,-500.0,0.00029281,2]
[310658906,1704637884493,-500.0,0.00029281,2]
[310658907,1704637884502,-500.0,0.00029281,2]
[310658908,1704637884511,-500.0,0.00029281,2]
[310658909,1704637884522,-500.0,0.00029281,2]
[310658910,1704637884531,-500.0,0.00029281,2]
[310658912,1704637884541,-500.0,0.00029281,2]
[310658913,1704637884551,-500.0,0.00029281,2]
[310658914,1704637884561,-500.0,0.00029281,2]
[310658915,1704637884570,-500.0,0.00029281,2]
[310658916,1704637884580,-500.0,0.00029281,2]
[310658917,1704637884590,-500.0,0.00029281,2]
[310658918,1704637884599,-500.0,0.00029281,2]
[310658919,1704637884609,-500.0,0.00029281,2]
[310658920,1704637884619,-500.0,0.00029281,2]
[310658921,1704637884628,-500.0,0.00029281,2]
[310658922,1704637884637,-500.0,0.00029281,2]
[310658923,1704637884646,-500.0,0.00029281,2]
[310658924,1704637884655,-302.32060759,0.00029281,2]
[310658925,1704637884665,-500.0,0.00029281,2]
[310658926,1704637884675,-500.0,0.00029281,2]
[310658927,1704637884684,-500.0,0.00029281,2]
[310658928,1704637884693,-515.34783116,0.00029281,2]
[310658929,1704637884702,-503.5162687,0.00029281,2]
[310658930,1704637884711,-500.0,0.00029281,2]
[310658931,1704637884721,-500.0,0.00029281,2]
[310658932,1704637884730,-500.0,0.00029281,2]
[310658933,1704637884740,-1006.36496417,0.00029281,2]
[310658934,1704637884749,-500.0,0.00029281,2]
[310658935,1704637884758,-500.0,0.00029281,2]
[310658936,1704637884767,-500.0,0.00029281,2]
[310658937,1704637884777,-618.57742701,0.00029281,2]
[310658938,1704637884787,-500.0,0.00029281,2]
[310658939,1704637884797,-502.00729513,0.00029281,2]
[310658940,1704637884806,-500.0,0.00029281,2]
[310658941,1704637884816,-585.56339129,0.00029281,2]
[310658942,1704637884826,-500.0,0.00029281,2]
[310658943,1704637884835,-500.0,0.00029281,2]
[310658944,1704637884846,-300.0,0.00029281,2]
[310658945,1704637884855,-500.0,0.00029281,2]
[310658946,1704637884865,-500.0,0.00029389,2]
[310658947,1704637884875,-400.96,0.00029486,2]
[310658948,1704637884884,-1104.3363656,0.00029498,2]
[310658949,1704637884894,-1084.49652693,0.00029498,2]
[310658950,1704637884903,-150.0,0.00029499,2]
[310658951,1704637884912,-1000.0,0.0002953,2]
[310658952,1704637884921,-500.0,0.00029578,2]
[310658953,1704637884931,-1551.04,0.00029613,2]
[310658954,1704637884942,-4259.52,0.00029613,2]
[310658955,1704637884952,-575.24,0.00029613,2]
[310658956,1704637884961,-2016.6,0.00029613,2]
[310658957,1704637884971,-500.0,0.00029613,2]
[310658958,1704637884980,-500.0,0.00029613,2]
[310658959,1704637884989,-1681.68,0.00029613,2]
[310658960,1704637884999,-500.0,0.00029613,2]
[310658961,1704637885008,-529.37,0.00029613,2]
[310658962,1704637885018,-500.0,0.00029613,2]
[310658963,1704637885027,-1024.89,0.00029613,2]
[310658964,1704637885037,-500.0,0.00029613,2]
[310658965,1704637885046,-500.0,0.00029613,2]
[310658966,1704637885055,-1027.53,0.00029613,2]
[310658967,1704637885065,-500.0,0.00029613,2]
[310658968,1704637885074,-781.73,0.00029613,2]
[310658969,1704637885083,-1482.03,0.00029613,2]
[310658970,1704637885092,-582.89,0.00029613,2]
[310658971,1704637885101,-500.0,0.00029613,2]
[310658972,1704637885111,-500.0,0.00029613,2]
[310658973,1704637885120,-937.95,0.00029613,2]
[310658974,1704637885129,-500.0,0.00029766,2]
[310658975,1704637885138,-195.49419204,0.000298,2]
[310658976,1704637885147,-280.72,0.00029886,2]
[310658977,1704637885167,-1152.38094598,0.000299,2]
[310658978,1704637885178,-500.0,0.00029907,2]
[310658979,1704637885187,-500.0,0.00029955,2]
[310658980,1704637885196,-500.0,0.00029972,2]
[310658981,1704637885206,-500.0,0.00029972,2]
[310658982,1704637885216,-500.0,0.00029972,2]
[310658983,1704637885225,-500.0,0.00029972,2]
[310658984,1704637885235,-343.52783453,0.00029997,2]
[310658985,1704637885244,-1381.06,0.00029998,2]
[310658986,1704637885254,-2115.91,0.00029998,2]
[310658987,1704637885264,-1652.68,0.00029998,2]
[310658988,1704637885273,-917.97,0.00029998,2]
[310658989,1704637885284,-500.0,0.00029998,2]
[310658990,1704637885296,-500.0,0.00029998,2]
[310658991,1704637885307,-303.7,0.00029998,2]
[310658992,1704637885320,-500.0,0.00029998,2]
[310658993,1704637885332,-500.0,0.00029998,2]
[310658994,1704637885345,-500.0,0.00029998,2]
[310658995,1704637885356,-500.0,0.00029998,2]
[310658996,1704637885366,-500.0,0.00029998,2]
[310658997,1704637885378,-500.0,0.00029998,2]
[310658998,1704637885387,-500.0,0.00029998,2]
[310658999,1704637885398,-972.61,0.00029998,2]
[310659000,1704637885408,-168.74780481,0.00029998,2]
[310659001,1704637885419,-500.0,0.00029998,2]
[310659002,1704637885430,-7305.55,0.00029998,2]
[310659003,1704637885440,-500.0,0.00029998,2]
[310659004,1704637885451,-607.17,0.00029998,2]
[310659005,1704637885461,-500.0,0.00029998,2]
[310659006,1704637885472,-500.0,0.00029998,2]
[310659007,1704637885482,-500.0,0.00029998,2]
[310659008,1704637885493,-1058.56,0.00029998,2]
[310659009,1704637885502,-500.0,0.00029998,2]
[310659010,1704637885512,-538.46362091,0.00029998,2]
[310659011,1704637885523,-500.0,0.00029998,2]
[310659012,1704637885532,-667.45,0.00029998,2]
[310659013,1704637885542,-543.32,0.00029998,2]
[310659014,1704637885552,-500.0,0.00029998,2]
[310659015,1704637885564,-500.0,0.00029998,2]
[310659016,1704637885574,-500.0,0.00029998,2]
[310659017,1704637885584,-627.29,0.00029998,2]
[310659018,1704637885594,-500.0,0.00029998,2]
[310659019,1704637885605,-574.18,0.00029998,2]
[310659020,1704637885615,-597.89,0.00029998,2]
[310659021,1704637885625,-500.0,0.00029998,2]
[310659022,1704637885635,-500.0,0.00029998,2]
[310659023,1704637885645,-526.43,0.00029998,2]
[310659024,1704637885656,-500.0,0.00029998,2]
[310659025,1704637885665,-500.0,0.00029998,2]
[310659026,1704637885676,-500.0,0.00029998,2]
[310659027,1704637885685,-514.11,0.00029998,2]
[310659028,1704637885695,-653.0,0.00029998,2]
[310659029,1704637885705,-598.69942253,0.00029998,2]
[310659030,1704637885715,-500.0,0.00029998,2]
[310659031,1704637885726,-500.0,0.00029998,2]
[310659032,1704637885735,-500.0,0.00029998,2]
[310659033,1704637885745,-613.75,0.00029998,2]
[310659034,1704637885755,-500.0,0.00029998,2]
[310659035,1704637885765,-857.86,0.00029998,2]
[310659036,1704637885775,-3039.55,0.00029998,2]
[310659037,1704637885784,-1017.17,0.00029998,2]
[310659038,1704637885795,-931.43,0.00029998,2]
[310659039,1704637885807,-413.29234944,0.00029998,2]
[310659040,1704637885819,-500.0,0.00029998,2]
[310659041,1704637885829,-517.06,0.00029998,2]
[310659042,1704637885838,-791.43,0.00029998,2]
[310659043,1704637885849,-500.0,0.00029998,2]
[310659044,1704637885859,-500.0,0.00029998,2]
[310659045,1704637885869,-500.0,0.00029998,2]
[310659046,1704637885878,-819.35,0.00029998,2]
[310659047,1704637885888,-500.0,0.00029998,2]
[310659048,1704637885897,-500.0,0.00029998,2]
[310659049,1704637885906,-3190.97,0.00029998,2]
[310659050,1704637885916,-318.76372428,0.00029998,2]
[310659051,1704637885925,-2391.46,0.00029998,2]
[310659052,1704637885934,-500.0,0.00029998,2]
[310659053,1704637885944,-609.51,0.00029998,2]
[310659054,1704637886140,-544.16,0.00029998,2]
[310659055,1704637886151,-504.77,0.00029998,2]
[310659056,1704637886161,-500.0,0.00029998,2]
[310659057,1704637886170,-628.85,0.00029998,2]
[310659058,1704637886180,-629.76,0.00029998,2]
[310659059,1704637886189,-1144.28,0.00029998,2]
[310659060,1704637886199,-500.0,0.00029998,2]
[310659061,1704637886208,-500.0,0.00029998,2]
[310659062,1704637886217,-603.59,0.00029998,2]
[310659063,1704637886227,-525.86,0.00029998,2]
[310659064,1704637886236,-500.0,0.00029998,2]
[310659065,1704637886245,-493.39,0.00029998,2]
[310659066,1704637886254,-641.83,0.00029998,2]
[310659067,1704637886263,-500.0,0.00029998,2]
[310659068,1704637886272,-500.0,0.00029999,2]
[310659069,1704637886281,-209.82,0.00029999,2]
[310659070,1704637886290,-500.0,0.00029999,2]
[310659071,1704637886300,-561.68,0.00029999,2]
[310659072,1704637886308,-452.84,0.00029999,2]
[310659073,1704637886318,-228.28953561,0.00029999,2]
[310659074,1704637886327,-500.0,0.00029999,2]
[310659075,1704637886336,-500.0,0.00029999,2]
[310659076,1704637886346,-846.81,0.00029999,2]
[310659077,1704637886355,-846.81,0.00029999,2]
[310659078,1704637886367,-1381.06,0.00029999,2]
[310659079,1704637886376,-2115.91,0.00029999,2]
[310659080,1704637886388,-500.0,0.00029999,2]
[310659081,1704637886397,-421.32029955,0.00029999,2]
[310659082,1704637886407,-467.13,0.00029999,2]
[310659083,1704637886417,-500.0,0.00029999,2]
[310659084,1704637886427,-610.58,0.00029999,2]
[310659085,1704637886437,-213.82,0.00029999,2]
[310659086,1704637886446,-1652.68,0.00029999,2]
[310659087,1704637886456,-917.97,0.00029999,2]
[310659088,1704637886467,-166.6084906,0.00029999,2]
[310659089,1704637886477,-500.0,0.00029999,2]
[310659090,1704637886488,-500.0,0.00029999,2]
[310659091,1704637886497,-500.0,0.00029999,2]
[310659092,1704637886507,-500.0,0.00029999,2]
[310659093,1704637886517,-469.92284634,0.00029999,2]
[310659094,1704637886527,-500.0,0.00029999,2]
[310659095,1704637886537,-260.95534671,0.00029999,2]
[310659096,1704637886546,-500.0,0.00029999,2]
[310659097,1704637886556,-500.0,0.00029999,2]
[310659098,1704637886566,-523.9,0.00029999,2]
[310659099,1704637886575,-500.0,0.00029999,2]
[310659100,1704637886585,-519.09376408,0.00029999,2]
[310659101,1704637886595,-500.0,0.00029999,2]
[310659102,1704637886605,-500.0,0.00029999,2]
[310659103,1704637886620,-500.0,0.00029999,2]
[310659104,1704637886630,-500.0,0.00029999,2]
[310659105,1704637886640,-500.0,0.00029999,2]
[310659106,1704637886649,-500.0,0.00029999,2]
[310659107,1704637886658,-500.0,0.00029999,2]
[310659108,1704637886668,-500.0,0.00029999,2]
[310659109,1704637886678,-500.0,0.00029999,2]
[310659110,1704637886687,-500.0,0.00029999,2]
[310659111,1704637886697,-500.0,0.00029999,2]
[310659112,1704637886707,-500.0,0.00029999,2]
[310659113,1704637886717,-237.72031514,0.00029999,2]
[310659114,1704637886726,-500.0,0.00029999,2]
[310659115,1704637886736,-522.70702642,0.00029999,2]
[310659116,1704637886746,-500.0,0.00029999,2]
[310659117,1704637886756,-500.0,0.00029999,2]
[310659118,1704637886765,-500.0,0.00029999,2]
[310659119,1704637886776,-500.0,0.00029999,2]
[310659120,1704637886785,-500.0,0.00029999,2]
[310659121,1704637886795,-217.4129481,0.00029999,2]
[310659122,1704637886804,-500.0,0.00029999,2]
[310659123,1704637886814,-500.0,0.00029999,2]
[310659124,1704637886824,-500.0,0.00029999,2]
[310659125,1704637886833,-500.0,0.00029999,2]
[310659126,1704637886842,-470.51,0.00029999,2]
[310659127,1704637886852,-500.0,0.00029999,2]
[310659128,1704637886862,-500.0,0.00029999,2]
[310659129,1704637886872,-500.0,0.00029999,2]
[310659130,1704637886882,-500.0,0.00029999,2]
[310659131,1704637886892,-500.0,0.00029999,2]
[310659132,1704637886902,-500.0,0.00029999,2]
[310659133,1704637886912,-380.07,0.00029999,2]
[310659134,1704637886922,-500.0,0.00029999,2]
[310659135,1704637886931,-500.0,0.00029999,2]
[310659136,1704637886940,-500.0,0.00029999,2]
[310659137,1704637886950,-1551.04,0.00029999,2]
[310659138,1704637886960,-1551.04,0.00029999,2]
[310659139,1704637886970,-500.0,0.00029999,2]
[310659140,1704637886979,-500.0,0.00029999,2]
[310659141,1704637886989,-4259.52,0.00029999,2]
[310659142,1704637886998,-4259.52,0.00029999,2]
[310659143,1704637887008,-220.05,0.00029999,2]
[310659144,1704637887018,-500.0,0.00029999,2]
[310659145,1704637887027,-500.0,0.00029999,2]
[310659146,1704637887037,-520.18780453,0.00029999,2]
[310659147,1704637887048,-173.07,0.00029999,2]
[310659148,1704637887058,-500.0,0.00029999,2]
[310659149,1704637887070,-972.61,0.00029999,2]
[310659150,1704637887080,-972.61,0.00029999,2]
[310659151,1704637887089,-500.0,0.00029999,2]
[310659152,1704637887099,-500.0,0.00029999,2]
[310659153,1704637887109,-575.24,0.00029999,2]
[310659154,1704637887118,-500.0,0.00029999,2]
[310659155,1704637887128,-575.24,0.00029999,2]
[310659156,1704637887137,-500.0,0.00029999,2]
[310659157,1704637887146,-500.0,0.00029999,2]
[310659158,1704637887155,-518.11040641,0.00029999,2]
[310659159,1704637887165,-7305.55,0.00029999,2]
[310659160,1704637887174,-7305.55,0.00029999,2]
[310659161,1704637887184,-500.0,0.00029999,2]
[310659162,1704637887193,-521.64976614,0.00029999,2]
[310659163,1704637887203,-607.17,0.00029999,2]
[310659164,1704637887212,-500.0,0.00029999,2]
[310659165,1704637887222,-500.0,0.00029999,2]
[310659166,1704637887232,-500.0,0.00029999,2]
[310659167,1704637887242,-500.0,0.00029999,2]
[310659168,1704637887251,-504.77,0.00029999,2]
[310659169,1704637887261,-446.8446928,0.00029999,2]
[310659170,1704637887271,-500.0,0.00029999,2]
[310659171,1704637887281,-500.0,0.00029999,2]
[310659172,1704637887291,-500.0,0.00029999,2]
[310659173,1704637887301,-500.0,0.00029999,2]
[310659174,1704637887316,-278.59942356,0.00029999,2]
[310659175,1704637887326,-2016.6,0.00029999,2]
[310659176,1704637887336,-506.03813044,0.00029999,2]
[310659177,1704637887347,-2016.6,0.00029999,2]
[310659178,1704637887357,-573.33219561,0.00029999,2]
[310659179,1704637887367,-500.0,0.00029999,2]
[310659180,1704637887377,-500.0,0.00029999,2]
[310659181,1704637887387,-506.89183276,0.00029999,2]
[310659182,1704637887397,-500.0,0.00029999,2]
[310659183,1704637887406,-1058.56,0.00029999,2]
[310659184,1704637887416,-500.0,0.00029999,2]
[310659185,1704637887426,-500.0,0.00029999,2]
[310659186,1704637887435,-500.0,0.00029999,2]
[310659187,1704637887444,-500.0,0.00029999,2]
[310659188,1704637887454,-500.0,0.00029999,2]
[310659189,1704637887463,-512.69384653,0.00029999,2]
[310659190,1704637887473,-500.0,0.00029999,2]
[310659191,1704637887482,-500.0,0.00029999,2]
[310659192,1704637887493,-500.0,0.00029999,2]
[310659193,1704637887502,-500.0,0.00029999,2]
[310659194,1704637887512,-500.0,0.00029999,2]
[310659195,1704637887522,-500.0,0.00029999,2]
[310659196,1704637887531,-500.0,0.00029999,2]
[310659197,1704637887541,-500.0,0.00029999,2]
[310659198,1704637887551,-667.45,0.00029999,2]
[310659199,1704637887560,-500.0,0.00029999,2]
[310659200,1704637887571,-543.32,0.00029999,2]
[310659201,1704637887581,-500.0,0.00029999,2]
[310659202,1704637887591,-553.17,0.00029999,2]
[310659203,1704637887601,-500.0,0.00029999,2]
[310659204,1704637887610,-517.05541797,0.00029999,2]
[310659205,1704637887620,-500.0,0.00029999,2]
[310659206,1704637887629,-500.0,0.00029999,2]
[310659207,1704637887639,-500.0,0.00029999,2]
[310659208,1704637887649,-559.55025972,0.00029999,2]
[310659209,1704637887658,-1681.68,0.00029999,2]
[310659210,1704637887668,-1681.68,0.00029999,2]
[310659211,1704637887677,-500.0,0.00029999,2]
[310659212,1704637887687,-500.0,0.00029999,2]
[310659213,1704637887697,-175.35,0.00029999,2]
[310659214,1704637887706,-500.0,0.00029999,2]
[310659215,1704637887716,-500.0,0.00029999,2]
[310659216,1704637887726,-627.29,0.00029999,2]
[310659217,1704637887735,-500.0,0.00029999,2]
[310659218,1704637887744,-500.0,0.00029999,2]
[310659219,1704637887754,-500.0,0.00029999,2]
[310659220,1704637887764,-500.0,0.00029999,2]
[310659221,1704637887774,-500.0,0.00029999,2]
[310659222,1704637887784,-574.18,0.00029999,2]
[310659223,1704637887794,-574.18,0.00029999,2]
[310659224,1704637887804,-500.0,0.00029999,2]
[310659225,1704637887814,-500.0,0.00029999,2]
[310659226,1704637887823,-500.0,0.00029999,2]
[310659227,1704637887832,-426.35702905,0.00029999,2]
[310659228,1704637887842,-597.89,0.00029999,2]
[310659229,1704637887852,-500.0,0.00029999,2]
[310659230,1704637887861,-636.09,0.00029999,2]
[310659231,1704637887871,-500.0,0.00029999,2]
[310659232,1704637887880,-500.0,0.00029999,2]
[310659233,1704637887890,-500.0,0.00029999,2]
[310659234,1704637887899,-500.0,0.00029999,2]
[310659235,1704637887910,-500.0,0.00029999,2]
[310659236,1704637887919,-526.43,0.00029999,2]
[310659237,1704637887929,-500.0,0.00029999,2]
[310659238,1704637887938,-187.33281314,0.00029999,2]
[310659239,1704637887948,-529.37,0.00029999,2]
[310659240,1704637887960,-529.37,0.00029999,2]
[310659241,1704637887970,-500.0,0.00029999,2]
[310659242,1704637887980,-500.0,0.00029999,2]
[310659243,1704637887990,-500.0,0.00029999,2]
[310659244,1704637887999,-500.0,0.00029999,2]
[310659245,1704637888009,-506.75126972,0.00029999,2]
[310659246,1704637888019,-521.23913344,0.00029999,2]
[310659247,1704637888028,-500.0,0.00029999,2]
[310659248,1704637888037,-285.93059649,0.00029999,2]
[310659249,1704637888047,-500.0,0.00029999,2]
[310659250,1704637888057,-505.25247658,0.00029999,2]
[310659251,1704637888068,-500.0,0.00029999,2]
[310659252,1704637888077,-611.16,0.00029999,2]
[310659253,1704637888087,-381.91,0.00029999,2]
[310659254,1704637888096,-514.11,0.00029999,2]
[310659255,1704637888106,-500.0,0.00029999,2]
[310659256,1704637888115,-500.0,0.00029999,2]
[310659257,1704637888124,-366.02422166,0.00029999,2]
[310659258,1704637888134,-500.0,0.00029999,2]
[310659259,1704637888143,-500.0,0.00029999,2]
[310659260,1704637888152,-500.0,0.00029999,2]
[310659261,1704637888162,-500.0,0.00029999,2]
[310659262,1704637888171,-500.0,0.00029999,2]
[310659263,1704637888182,-653.0,0.00029999,2]
[310659264,1704637888191,-653.0,0.00029999,2]
[310659265,1704637888200,-500.0,0.00029999,2]
[310659266,1704637888210,-545.56549809,0.00029999,2]
[310659267,1704637888219,-1024.89,0.00029999,2]
[310659268,1704637888228,-1024.89,0.00029999,2]
[310659269,1704637888238,-525.13786781,0.00029999,2]
[310659270,1704637888247,-500.0,0.00029999,2]
[310659271,1704637888256,-500.0,0.00029999,2]
[310659272,1704637888265,-190.82773027,0.00029999,2]
[310659273,1704637888275,-500.0,0.00029999,2]
[310659274,1704637888286,-500.0,0.00029999,2]
[310659275,1704637888295,-500.0,0.00029999,2]
[310659276,1704637888309,-514.73511574,0.00029999,2]
[310659277,1704637888319,-500.0,0.00029999,2]
[310659278,1704637888329,-500.0,0.00029999,2]
[310659279,1704637888338,-613.75,0.00029999,2]
[310659280,1704637888347,-613.75,0.00029999,2]
[310659281,1704637888357,-417.07019296,0.00029999,2]
[310659282,1704637888367,-613.75,0.00029999,2]
[310659283,1704637888377,-613.75,0.00029999,2]
[310659284,1704637888388,-613.75,0.00029999,2]
[310659285,1704637888398,-613.8,0.00029999,2]
[310659286,1704637888407,-591.3214337,0.00029999,2]
[310659287,1704637888417,-500.0,0.00029999,2]
[310659288,1704637888426,-500.0,0.00029999,2]
[310659289,1704637888436,-500.0,0.00029999,2]
[310659290,1704637888445,-500.0,0.00029999,2]
[310659291,1704637888456,-500.0,0.00029999,2]
[310659292,1704637888465,-500.0,0.00029999,2]
[310659293,1704637888475,-500.0,0.00029999,2]
[310659294,1704637888485,-857.86,0.00029999,2]
[310659295,1704637888495,-500.0,0.00029999,2]
[310659296,1704637888505,-857.86,0.00029999,2]